fUSD/lending_fUSD_20250514
["ID","MTS","AMOUNT","RATE_DAILY","PERIOD"]
[361071540,1747231843123,-1510.28,0.00010972,2]
[361071542,1747231843133,-847.11,0.00010972,2]
[361071543,1747231843145,-400.0,0.00010972,2]
[361071544,1747231843154,-545.8,0.00010972,2]
[361071545,1747231843164,-453.06,0.00010972,2]
[361071546,1747231843175,-3175.52,0.00010972,2]
[361071547,1747231843185,-400.0,0.00010972,2]
[361071548,1747231843195,-400.0,0.00010972,2]
[361071549,1747231843204,-157.98679425,0.00010972,2]
[361071550,1747231843214,-400.0,0.00010972,2]
[361071551,1747231843223,-1058.11,0.00010972,2]
[361071552,1747231843233,-407.01879712,0.00010972,2]
[361071553,1747231843243,-540.36,0.00010972,2]
[361071554,1747231843254,-400.0,0.00010972,2]
[361071555,1747231843264,-442.33,0.00010972,2]
[361071556,1747231843275,-400.0,0.00010972,2]
[361071557,1747231843285,-400.0,0.00010972,2]
[361071558,1747231843295,-400.0,0.00010972,2]
[361071559,1747231843304,-400.0,0.00010972,2]
[361071560,1747231843314,-435.64,0.00010972,2]
[361071561,1747231843324,-407.93,0.00010972,2]
[361071562,1747231843334,-1011.9,0.00010972,2]
[361071563,1747231843343,-400.0,0.00010972,2]
[361071564,1747231843353,-400.0,0.00010972,2]
[361071565,1747231843363,-575.06,0.00010972,2]
[361071566,1747231843373,-907.5,0.00010972,2]
[361071567,1747231843383,-427.14,0.00010972,2]
[361071568,1747231843393,-400.0,0.00010972,2]
[361071569,1747231843403,-991.93,0.00010972,2]
[361071570,1747231843413,-400.0,0.00010972,2]
[361071571,1747231843423,-400.0,0.00010972,2]
[361071572,1747231843432,-515.73,0.00010972,2]
[361071573,1747231843442,-960.28,0.00010972,2]
[361071574,1747231843452,-806.06,0.00010972,2]
[361071575,1747231843461,-906.45,0.00010972,2]
[361071576,1747231843471,-400.0,0.00010972,2]
[361071577,1747231843481,-783.82,0.00010972,2]
[361071578,1747231843490,-968.6,0.00010972,2]
[361071579,1747231843500,-484.07,0.00010972,2]
[361071580,1747231843510,-400.0,0.00010972,2]
[361071581,1747231843520,-400.0,0.00010972,2]
[361071582,1747231843530,-400.0,0.00010972,2]
[361071583,1747231843539,-400.0,0.00010972,2]
[361071584,1747231843549,-655.96,0.00010972,2]
[361071585,1747231843559,-1423.37,0.00010972,2]
[361071586,1747231843568,-2155.7,0.00010972,2]
[361071587,1747231843578,-400.0,0.00010972,2]
[361071588,1747231843588,-400.0,0.00010972,2]
[361071589,1747231843597,-400.0,0.00010972,2]
[361071590,1747231843607,-446.09226436,0.00010972,2]
[361071591,1747231843838,-979.83,0.00010972,2]
[361071592,1747231843848,-400.0,0.00010972,2]
[361071593,1747231843858,-567.74,0.00010972,2]
[361071594,1747231843867,-400.0,0.00010972,2]
[361071595,1747231843878,-400.0,0.00010972,2]
[361071596,1747231843890,-400.0,0.00010972,2]
[361071597,1747231843900,-500.0,0.00010973,2]
[361071598,1747231843910,-500.0,0.00010973,2]
[361071599,1747231843919,-500.0,0.00010973,2]
[361071600,1747231843929,-400.0,0.00010973,2]
[361071601,1747231843938,-400.0,0.00010973,2]
[361071602,1747231843947,-400.0,0.00010973,2]
[361071603,1747231843957,-400.0,0.00010973,2]
[361071604,1747231843966,-400.0,0.00010973,2]
[361071605,1747231843975,-509.29,0.00010973,2]
[361071606,1747231843985,-400.0,0.00010973,2]
[361071607,1747231843995,-400.0,0.00010973,2]
[361071608,1747231844005,-400.0,0.00010973,2]
[361071609,1747231844014,-554.35,0.00010973,2]
[361071610,1747231844024,-1387.47,0.00010973,2]
[361071611,1747231844033,-400.0,0.00010973,2]
[361071612,1747231844043,-400.0,0.00010973,2]
[361071613,1747231844052,-400.0,0.00010973,2]
[361071614,1747231844062,-400.0,0.00010973,2]
[361071615,1747231844072,-400.0,0.00010973,2]
[361071616,1747231844081,-716.33,0.00010973,2]
[361071617,1747231844091,-400.0,0.00010973,2]
[361071618,1747231844101,-432.21659453,0.00010973,2]
[361071619,1747231844110,-358.0,0.00010973,2]
[361071620,1747231844120,-526.57980561,0.00010973,2]
[361071621,1747231844129,-400.0,0.00010973,2]
[361071622,1747231844146,-400.0,0.00010973,2]
[361071623,1747231844155,-400.0,0.00010973,2]
[361071624,1747231844164,-400.0,0.00010973,2]
[361071625,1747231844174,-400.0,0.00010973,2]
[361071626,1747231844184,-400.0,0.00010973,2]
[361071627,1747231844193,-400.0,0.00010973,2]
[361071628,1747231844203,-400.0,0.00010973,2]
[361071629,1747231844212,-400.0,0.00010973,2]
[361071630,1747231844222,-400.0,0.00010973,2]
[361071631,1747231844232,-400.0,0.00010973,2]
[361071632,1747231844242,-603.8,0.00010973,2]
[361071633,1747231844252,-393.68379781,0.00010973,2]
[361071634,1747231844261,-400.0,0.00010973,2]
[361071635,1747231844271,-400.0,0.00010973,2]
[361071636,1747231844281,-400.0,0.00010973,2]
[361071637,1747231844291,-1206.83,0.00010973,2]
[361071638,1747231844301,-400.0,0.00010973,2]
[361071639,1747231844310,-400.0,0.00010973,2]
[361071640,1747231844320,-422.63769423,0.00010973,2]
[361071641,1747231844330,-400.0,0.00010973,2]
[361071642,1747231844340,-453.69,0.00010973,2]
[361071643,1747231844351,-507.42915884,0.00010973,2]
[361071644,1747231844360,-650.13,0.00010973,2]
[361071645,1747231844370,-400.0,0.00010973,2]
[361071646,1747231844379,-400.0,0.00010973,2]
[361071647,1747231844392,-748.0,0.00010973,2]
[361071648,1747231844401,-448.97,0.00010973,2]
[361071649,1747231844411,-400.0,0.00010973,2]
[361071650,1747231844420,-403.41672557,0.00010973,2]
[361071651,1747231844430,-400.0,0.00010973,2]
[361071652,1747231844439,-400.0,0.00010973,2]
[361071653,1747231844448,-400.0,0.00010973,2]
[361071654,1747231844458,-967.59,0.00010973,2]
[361071655,1747231844467,-400.0,0.00010973,2]
[361071656,1747231844477,-400.0,0.00010973,2]
[361071657,1747231844487,-400.0,0.00010973,2]
[361071658,1747231844496,-400.0,0.00010973,2]
[361071659,1747231844505,-400.0,0.00010973,2]
[361071660,1747231844514,-693.09,0.00010973,2]
[361071661,1747231844524,-400.0,0.00010973,2]
[361071662,1747231844533,-400.0,0.00010973,2]
[361071663,1747231844542,-957.45,0.00010973,2]
[361071664,1747231844551,-586.22,0.00010973,2]
[361071665,1747231844560,-487.83129955,0.00010973,2]
[361071666,1747231844570,-400.0,0.00010973,2]
[361071667,1747231844579,-400.0,0.00010973,2]
[361071668,1747231844588,-400.0,0.00010973,2]
[361071669,1747231844597,-400.0,0.00010973,2]
[361071670,1747231844607,-495.99253073,0.00010973,2]
[361071671,1747231844616,-400.0,0.00010973,2]
[361071672,1747231844625,-400.0,0.00010973,2]
[361071673,1747231844639,-400.0,0.00010973,2]
[361071674,1747231844648,-400.0,0.00010973,2]
[361071675,1747231844658,-400.0,0.00010973,2]
[361071676,1747231844667,-400.0,0.00010973,2]
[361071677,1747231844677,-400.0,0.00010973,2]
[361071678,1747231844686,-400.0,0.00010973,2]
[361071679,1747231844696,-400.0,0.00010973,2]
[361071680,1747231844710,-400.0,0.00010973,2]
[361071681,1747231844719,-400.0,0.00010973,2]
[361071682,1747231844728,-464.96,0.00010973,2]
[361071683,1747231844738,-416.17002106,0.00010973,2]
[361071684,1747231844747,-417.28,0.00010973,2]
[361071685,1747231844756,-400.0,0.00010973,2]
[361071686,1747231844765,-546.52939869,0.00010973,2]
[361071687,1747231844775,-400.0,0.00010973,2]
[361071688,1747231844785,-522.09,0.00010973,2]
[361071689,1747231844795,-400.0,0.00010973,2]
[361071690,1747231844804,-400.0,0.00010973,2]
[361071691,1747231844813,-463.01,0.00010973,2]
[361071692,1747231844823,-400.0,0.00010973,2]
[361071693,1747231844832,-400.0,0.00010973,2]
[361071694,1747231844841,-400.0,0.00010973,2]
[361071695,1747231844851,-400.0,0.00010973,2]
[361071696,1747231844860,-500.0,0.00010974,2]
[361071697,1747231844869,-500.0,0.00010998,2]
[361071698,1747231844879,-500.0,0.00010999,2]
[361071699,1747231844895,-500.0,0.00010999,2]
[361071700,1747231844904,-500.0,0.00010999,2]
[361071701,1747231844914,-1444.75206675,0.00011099,2]
[361071702,1747231844924,-1060.99,0.000111,2]
[361071703,1747231844933,-1000.0,0.000111,2]
[361071704,1747231844943,-1000.0,0.000111,2]
[361071705,1747231844952,-1000.0,0.000111,2]
[361071706,1747231844961,-1000.0,0.000111,2]
[361071707,1747231844971,-1000.0,0.000111,2]
[361071708,1747231844980,-164.35,0.00011133,2]
[361071709,1747231844991,-1444.75206672,0.00011145,2]
[361071710,1747231845000,-323.72245747,0.00011145,2]
[361071711,1747231845010,-224.46950943,0.00011146,2]
[361071712,1747231845020,-969.01581903,0.00011151,2]
[361071713,1747231845029,-4000.0,0.00011233,2]
[361071714,1747231845039,-400.0,0.00011244,2]
[361071715,1747231845049,-400.0,0.00011244,2]
[361071716,1747231845058,-400.0,0.00011244,2]
[361071717,1747231845067,-400.0,0.00011244,2]
[361071718,1747231845077,-400.0,0.00011244,2]
[361071719,1747231845086,-721.9,0.00011244,2]
[361071720,1747231845096,-689.02,0.00011244,2]
[361071721,1747231845105,-400.0,0.00011244,2]
[361071722,1747231845115,-400.0,0.00011244,2]
[361071723,1747231845125,-1701.72,0.00011244,2]
[361071724,1747231845138,-1397.49,0.00011244,2]
[361071725,1747231845148,-676.07,0.00011244,2]
[361071726,1747231845157,-400.0,0.00011244,2]
[361071727,1747231845167,-509.9593384,0.00011244,2]
[361071728,1747231845177,-3146.17,0.00011244,2]
[361071729,1747231845186,-1036.18,0.00011244,2]
[361071730,1747231845196,-1093.2,0.00011244,2]
[361071731,1747231845206,-400.0,0.00011244,2]
[361071732,1747231845215,-2812.09,0.00011244,2]
[361071733,1747231845225,-7437.02,0.00011244,2]
[361071734,1747231845234,-305.20290868,0.00011244,2]
[361071735,1747231845244,-514.18,0.00011244,2]
[361071736,1747231845253,-1025.11,0.00011244,2]
[361071737,1747231845263,-400.0,0.00011244,2]
[361071738,1747231845273,-6741.147066,0.00011244,2]
[361071739,1747231845283,-207.829378,0.00011244,2]
[361071740,1747231845292,-400.0,0.00011244,2]
[361071741,1747231845302,-1078.9,0.00011244,2]
[361071742,1747231845312,-400.0,0.00011244,2]
[361071743,1747231845321,-400.0,0.00011244,2]
[361071744,1747231845331,-787.59,0.00011244,2]
[361071745,1747231845341,-768.88,0.00011244,2]
[361071746,1747231845350,-400.0,0.00011244,2]
[361071747,1747231845361,-416.36,0.00011244,2]
[361071748,1747231845371,-400.0,0.00011244,2]
[361071749,1747231845380,-4392.52,0.00011244,2]
[361071750,1747231845393,-476.543055,0.00011244,2]
[361071751,1747231845403,-400.0,0.00011244,2]
[361071752,1747231845412,-400.0,0.00011244,2]
[361071753,1747231845422,-400.0,0.00011244,2]
[361071754,1747231845432,-2221.5,0.00011244,2]
[361071755,1747231845443,-400.0,0.00011244,2]
[361071756,1747231845453,-400.0,0.00011244,2]
[361071757,1747231845463,-863.09,0.00011244,2]
[361071758,1747231845472,-491.02,0.00011244,2]
[361071759,1747231845482,-624.77,0.00011245,2]
[361071760,1747231845491,-438.82,0.00011245,2]
[361071761,1747231845501,-400.0,0.00011245,2]
[361071762,1747231845511,-400.0,0.00011245,2]
[361071763,1747231845520,-572.78,0.00011245,2]
[361071764,1747231845529,-400.0,0.00011245,2]
[361071765,1747231845538,-400.0,0.00011245,2]
[361071766,1747231845548,-413.54,0.00011245,2]
[361071767,1747231845557,-400.0,0.00011245,2]
[361071768,1747231845566,-400.0,0.00011245,2]
[361071769,1747231845575,-400.0,0.00011245,2]
[361071770,1747231845585,-400.0,0.00011245,2]
[361071771,1747231845594,-400.0,0.00011245,2]
[361071772,1747231845603,-1033.09,0.00011245,2]
[361071773,1747231845612,-262.78816408,0.00011245,2]
[361071774,1747231845621,-400.0,0.00011245,2]
[361071775,1747231845631,-496.65,0.00011245,2]
[361071776,1747231845646,-400.0,0.00011245,2]
[361071777,1747231845655,-438.92,0.00011245,2]
[361071778,1747231845665,-166.55561851,0.00011245,2]
[361071779,1747231845674,-433.87,0.00011245,2]
[361071780,1747231845683,-400.0,0.00011245,2]
[361071781,1747231845693,-585.88,0.00011245,2]
[361071782,1747231845706,-421.97,0.00011245,2]
[361071783,1747231845715,-250.0,0.00011245,2]
[361071784,1747231845726,-400.0,0.00011245,2]
[361071785,1747231845735,-689.64,0.00011245,2]
[361071786,1747231845745,-400.0,0.00011245,2]
[361071787,1747231845755,-728.56,0.00011245,2]
[361071788,1747231845765,-400.0,0.00011245,2]
[361071789,1747231845775,-400.0,0.00011245,2]
[361071790,1747231845784,-400.0,0.00011245,2]
[361071791,1747231845794,-400.0,0.00011245,2]
[361071792,1747231845804,-400.0,0.00011245,2]
[361071793,1747231845813,-400.0,0.00011245,2]
[361071794,1747231845823,-400.0,0.00011245,2]
[361071795,1747231845832,-400.0,0.00011245,2]
[361071796,1747231845841,-400.0,0.00011245,2]
[361071797,1747231845850,-400.0,0.00011245,2]
[361071798,1747231845859,-469.16,0.00011245,2]
[361071799,1747231845868,-377.10481776,0.00011245,2]
[361071800,1747231845878,-400.0,0.00011245,2]
[361071801,1747231845891,-400.0,0.00011245,2]
[361071802,1747231845900,-842.77,0.00011245,2]
[361071803,1747231845910,-400.0,0.00011245,2]
[361071804,1747231845920,-400.0,0.00011245,2]
[361071805,1747231845929,-386.55955153,0.00011245,2]
[361071806,1747231845939,-400.0,0.00011245,2]
[361071807,1747231845949,-629.96,0.00011245,2]
[361071808,1747231845958,-400.0,0.00011245,2]
[361071809,1747231845967,-1159.29,0.00011245,2]
[361071810,1747231845976,-400.0,0.00011245,2]
[361071811,1747231845986,-400.0,0.00011245,2]
[361071812,1747231845995,-548.88,0.00011245,2]
[361071813,1747231846006,-400.0,0.00011245,2]
[361071814,1747231846015,-400.0,0.00011245,2]
[361071815,1747231846025,-400.0,0.00011245,2]
[361071816,1747231846035,-575.12,0.00011245,2]
[361071817,1747231846045,-440.37,0.00011245,2]
[361071818,1747231846055,-400.0,0.00011245,2]
[361071819,1747231846064,-400.0,0.00011245,2]
[361071820,1747231846074,-400.0,0.00011245,2]
[361071821,1747231846084,-578.35,0.00011245,2]
[361071822,1747231846093,-563.34,0.00011245,2]
[361071823,1747231846103,-471.12,0.00011245,2]
[361071824,1747231846113,-400.0,0.00011245,2]
[361071825,1747231846123,-534.93,0.00011245,2]
[361071826,1747231846133,-400.0,0.00011245,2]
[361071827,1747231846145,-400.0,0.00011245,2]
[361071828,1747231846155,-481.69,0.00011245,2]
[361071829,1747231846165,-400.0,0.00011245,2]
[361071830,1747231846176,-400.0,0.00011245,2]
[361071831,1747231846186,-400.0,0.00011245,2]
[361071832,1747231846196,-758.96,0.00011245,2]
[361071833,1747231846206,-400.0,0.00011245,2]
[361071834,1747231846215,-400.0,0.00011245,2]
[361071835,1747231846225,-400.0,0.00011245,2]
[361071836,1747231846235,-400.0,0.00011245,2]
[361071837,1747231846244,-400.0,0.00011245,2]
[361071838,1747231846253,-400.0,0.00011245,2]
[361071839,1747231846263,-400.0,0.00011245,2]
[361071840,1747231846273,-400.0,0.00011245,2]
[361071841,1747231846282,-469.83130621,0.00011245,2]
[361071842,1747231846292,-400.0,0.00011245,2]
[361071843,1747231846301,-652.06,0.00011245,2]
[361071844,1747231846311,-514.41,0.00011245,2]
[361071845,1747231846320,-400.0,0.00011245,2]
[361071846,1747231846330,-608.2,0.00011245,2]
[361071847,1747231846339,-434.12,0.00011245,2]
[361071848,1747231846349,-572.2,0.00011245,2]
[361071849,1747231846358,-400.0,0.00011245,2]
[361071850,1747231846368,-437.97,0.00011245,2]
[361071851,1747231846377,-400.0,0.00011245,2]
[361071852,1747231846388,-540.01,0.00011245,2]
[361071853,1747231846398,-537.3,0.00011245,2]
[361071854,1747231846408,-488.03,0.00011245,2]
[361071855,1747231846417,-1805.69,0.00011245,2]
[361071856,1747231846427,-507.18303721,0.00011245,2]
[361071857,1747231846436,-400.0,0.00011245,2]
[361071858,1747231846445,-518.92,0.00011245,2]
[361071859,1747231846455,-400.0,0.00011245,2]
[361071860,1747231846464,-1574.85,0.00011245,2]
[361071861,1747231846474,-400.0,0.00011245,2]
[361071862,1747231846483,-400.0,0.00011245,2]
[361071863,1747231846493,-400.0,0.00011245,2]
[361071864,1747231846502,-584.26,0.00011245,2]
[361071865,1747231846511,-400.0,0.00011245,2]
[361071866,1747231846521,-1178.01,0.00011245,2]
[361071867,1747231846530,-400.0,0.00011245,2]
[361071868,1747231846539,-400.0,0.00011245,2]
[361071869,1747231846548,-400.0,0.00011245,2]
[361071870,1747231846557,-400.0,0.00011245,2]
[361071871,1747231846566,-400.0,0.00011245,2]
[361071872,1747231846575,-1072.83,0.00011245,2]
[361071873,1747231846584,-1030.61,0.00011245,2]
[361071874,1747231846594,-400.0,0.00011245,2]
[361071875,1747231846603,-1101.97,0.00011245,2]
[361071876,1747231846612,-588.33,0.00011245,2]
[361071877,1747231846621,-400.0,0.00011245,2]
[361071878,1747231846631,-400.0,0.00011245,2]
[361071879,1747231846643,-641.08,0.00011245,2]
[361071880,1747231846652,-400.0,0.00011245,2]
[361071881,1747231846662,-1571.62,0.00011245,2]
[361071882,1747231846671,-806.27,0.00011245,2]
[361071883,1747231846681,-400.0,0.00011245,2]
[361071884,1747231846691,-2548.39,0.00011245,2]
[361071885,1747231846701,-400.0,0.00011245,2]
[361071886,1747231846713,-400.0,0.00011245,2]
[361071887,1747231846723,-400.0,0.00011245,2]
[361071888,1747231846734,-400.0,0.00011245,2]
[361071889,1747231846743,-833.48,0.00011245,2]
[361071890,1747231846755,-3195.4,0.00011245,2]
[361071891,1747231846764,-785.51,0.00011245,2]
[361071892,1747231846776,-400.0,0.00011245,2]
[361071893,1747231846786,-482.64,0.00011245,2]
[361071894,1747231846795,-400.0,0.00011245,2]
[361071895,1747231846804,-647.67,0.00011245,2]
[361071896,1747231846814,-400.0,0.00011245,2]
[361071897,1747231846823,-400.0,0.00011245,2]
[361071898,1747231846832,-1296.19,0.00011245,2]
[361071899,1747231846841,-274.58317515,0.00011245,2]
[361071900,1747231846850,-2202.89,0.00011245,2]
[361071901,1747231846859,-400.0,0.00011245,2]
[361071902,1747231846868,-400.0,0.00011245,2]
[361071903,1747231846878,-803.66,0.00011245,2]
[361071904,1747231846889,-897.8,0.00011245,2]
[361071905,1747231846898,-2105.65,0.00011245,2]
[361071906,1747231846907,-1206.03,0.00011245,2]
[361071907,1747231846916,-1589.44,0.00011245,2]
[361071908,1747231846926,-592.39,0.00011245,2]
[361071909,1747231846935,-400.0,0.00011245,2]
[361071910,1747231846944,-790.06,0.00011245,2]
[361071911,1747231846953,-400.0,0.00011245,2]
[361071912,1747231846963,-1618.51,0.00011245,2]
[361071913,1747231846973,-400.0,0.00011245,2]
[361071914,1747231846983,-460.79366897,0.00011245,2]
[361071915,1747231846992,-400.0,0.00011245,2]
[361071916,1747231847001,-14381.7,0.00011245,2]
[361071917,1747231847011,-1126.5,0.00011245,2]
[361071918,1747231847020,-913.78,0.00011245,2]
[361071919,1747231847029,-535.81,0.00011245,2]
[361071920,1747231847040,-400.0,0.00011245,2]
[361071921,1747231847050,-400.0,0.00011245,2]
[361071922,1747231847061,-400.0,0.00011245,2]
[361071923,1747231847070,-432.37,0.00011245,2]
[361071924,1747231847080,-2976.97,0.00011245,2]
[361071925,1747231847089,-1281.65,0.00011245,2]
[361071926,1747231847099,-658.35,0.00011245,2]
[361071927,1747231847108,-283.6397174,0.00011245,2]
[361071928,1747231847117,-1352.47,0.00011245,2]
[361071929,1747231847127,-2522.86,0.00011245,2]
[361071930,1747231847136,-425.69,0.00011245,2]
[361071931,1747231847146,-6084.46,0.00011245,2]
[361071932,1747231847155,-400.0,0.00011245,2]
[361071933,1747231847164,-491.22,0.00011245,2]
[361071934,1747231847174,-400.0,0.00011245,2]
[361071935,1747231847183,-1535.38,0.00011245,2]
[361071936,1747231847192,-2141.96,0.00011245,2]
[361071937,1747231847202,-483.06,0.00011245,2]
[361071938,1747231847211,-400.0,0.00011245,2]
[361071939,1747231847221,-1076.73,0.00011245,2]
[361071940,1747231847231,-1217.17,0.00011245,2]
[361071941,1747231847240,-400.0,0.00011245,2]
[361071942,1747231847249,-2381.42,0.00011245,2]
[361071943,1747231847259,-400.0,0.00011245,2]
[361071944,1747231847269,-400.0,0.00011245,2]
[361071945,1747231847279,-400.0,0.00011245,2]
[361071946,1747231847288,-663.93,0.00011245,2]
[361071947,1747231847298,-400.78460587,0.00011245,2]
[361071948,1747231847307,-591.13,0.00011245,2]
[361071949,1747231847317,-752.19,0.00011245,2]
[361071950,1747231847326,-3429.38,0.00011245,2]
[361071951,1747231847336,-400.0,0.00011245,2]
[361071952,1747231847345,-806.28,0.00011245,2]
[361071953,1747231847355,-400.0,0.00011245,2]
[361071954,1747231847364,-469.6,0.00011245,2]
[361071955,1747231847374,-400.0,0.00011245,2]
[361071956,1747231847383,-1701.72,0.00011245,2]
[361071957,1747231847394,-400.0,0.00011245,2]
[361071958,1747231847403,-441.57,0.00011245,2]
[361071959,1747231847412,-400.0,0.00011245,2]
[361071960,1747231847421,-434.83,0.00011245,2]
[361071961,1747231847431,-400.0,0.00011245,2]
[361071962,1747231847439,-4839.43,0.00011245,2]
[361071963,1747231847449,-745.48,0.00011245,2]
[361071964,1747231847458,-498.57,0.00011245,2]
[361071965,1747231847467,-400.0,0.00011245,2]
[361071966,1747231847476,-946.11,0.00011245,2]
[361071967,1747231847485,-400.0,0.00011245,2]
[361071968,1747231847494,-400.0,0.00011245,2]
[361071969,1747231847503,-2695.34,0.00011245,2]
[361071970,1747231847512,-876.94,0.00011245,2]
[361071971,1747231847521,-458.95,0.00011245,2]
[361071972,1747231847530,-403.72,0.00011245,2]
[361071973,1747231847539,-1424.41,0.00011245,2]
[361071974,1747231847548,-400.0,0.00011245,2]
[361071975,1747231847557,-729.6,0.00011245,2]
[361071976,1747231847567,-555.61,0.00011245,2]
[361071977,1747231847575,-400.0,0.00011245,2]
[361071978,1747231847584,-611.22,0.00011245,2]
[361071979,1747231847594,-2034.31,0.00011245,2]
[361071980,1747231847603,-1242.71,0.00011245,2]
[361071981,1747231847613,-1277.48,0.00011245,2]
[361071982,1747231847623,-2448.21,0.00011245,2]
[361071983,1747231847632,-400.0,0.00011245,2]
[361071984,1747231847645,-671.48,0.00011245,2]
[361071985,1747231847655,-400.0,0.00011245,2]
[361071986,1747231847664,-37671.09,0.00011245,2]
[361071987,1747231847673,-1367.76,0.00011245,2]
[361071988,1747231847683,-400.0,0.00011245,2]
[361071989,1747231847692,-400.0,0.00011245,2]
[361071990,1747231847702,-1814.19,0.00011245,2]
[361071991,1747231847715,-400.0,0.00011245,2]
[361071992,1747231847724,-400.0,0.00011245,2]
[361071993,1747231847734,-1283.83,0.00011245,2]
[361071994,1747231847744,-1828.53,0.00011245,2]
[361071995,1747231847754,-2005.91,0.00011245,2]
[361071996,1747231847763,-400.0,0.00011245,2]
[361071997,1747231847773,-425.32,0.00011245,2]
[361071998,1747231847783,-400.0,0.00011245,2]
[361071999,1747231847792,-567.01,0.00011245,2]
[361072000,1747231847801,-400.0,0.00011245,2]
[361072001,1747231847811,-400.0,0.00011245,2]
[361072002,1747231847821,-400.0,0.00011245,2]
[361072003,1747231848024,-5104.76,0.00011245,2]
[361072004,1747231848034,-596.75681142,0.00011245,2]
[361072005,1747231848043,-400.0,0.00011245,2]
[361072006,1747231848052,-832.56,0.00011245,2]
[361072007,1747231848062,-870.74,0.00011245,2]
[361072008,1747231848071,-400.0,0.00011245,2]
[361072009,1747231848081,-4332.26,0.00011245,2]
[361072010,1747231848090,-563.35,0.00011245,2]
[361072011,1747231848100,-440.68,0.00011245,2]
[361072012,1747231848110,-400.0,0.00011245,2]
[361072013,1747231848120,-400.0,0.00011245,2]
[361072014,1747231848129,-426.02,0.00011245,2]
[361072015,1747231848142,-400.0,0.00011245,2]
[361072016,1747231848152,-400.0,0.00011245,2]
[361072017,1747231848162,-632.44,0.00011245,2]
[361072018,1747231848172,-400.0,0.00011245,2]
[361072019,1747231848182,-498.1,0.00011245,2]
[361072020,1747231848191,-400.0,0.00011245,2]
[361072021,1747231848201,-601.82,0.00011245,2]
[361072022,1747231848211,-5849.98,0.00011245,2]
[361072023,1747231848222,-400.0,0.00011245,2]
[361072024,1747231848232,-1419.67,0.00011245,2]
[361072025,1747231848242,-764.34,0.00011245,2]
[361072026,1747231848252,-400.0,0.00011245,2]
[361072027,1747231848261,-931.6,0.00011245,2]
[361072028,1747231848271,-400.0,0.00011245,2]
[361072029,1747231848282,-400.0,0.00011245,2]
[361072030,1747231848292,-63691.44,0.00011245,2]
[361072031,1747231848302,-1892.98,0.00011245,2]
[361072032,1747231848313,-886.06,0.00011245,2]
[361072033,1747231848323,-6046.85,0.00011245,2]
[361072034,1747231848334,-400.0,0.00011246,2]
[361072035,1747231848344,-400.0,0.00011246,2]
[361072036,1747231848354,-874.46,0.00011246,2]
[361072037,1747231848365,-628.37,0.00011246,2]
[361072038,1747231848375,-424.42,0.00011246,2]
[361072039,1747231848388,-400.0,0.00011246,2]
[361072040,1747231848398,-800.08,0.00011246,2]